Workbook

Sheet Лист1
B1: "Утверждаю" директор школы: Глухова М.М.
B3: ДВУХНЕДЕЛЬНОЕ МЕНЮ ДЛЯ ОБУЧАЮЩИХСЯ В МБОУ "КРАСНОЯРСКАЯ ООШ" С 1-4 КЛАССЫ
A5: № рецептуры | B5: Наименование блюд | G5: Выход | H5: Белки, г | I5: Жиры, г | K5: Углеводы, г | M5: Калорийность, ккал | O5: Ca, мг | P5: P, мг | Q5: Mg, мг | R5: Fe, мг
B6: 1-ая неделя
B7: 1 день
A8: № 338 Сбор.рец. На прод-ию для обуч. Во всех образ.учреж-Дели 2015 | B8: ПЛОДЫ И ЯГОДЫ СВЕЖИЕ (ЯБЛОКИ) | G8: 100 | H8: 0.400 | I8: 0.400 | K8: 7.350 | M8: 47 | O8: 16.000 | P8: 11.000 | Q8: 9.000 | R8: 0.030
A9: № 256 Сбор.рец. На прод-ию для обуч. Во всех образ.учреж-Дели 2015 | B9: МЯСО ТУШЕНОЕ | G9: 50/50 | H9: 10.500 | I9: 11.030 | K9: 3.184 | M9: 196 | O9: 66.806 | P9: 215.174 | Q9: 30.164 | R9: 1.430
A10: № 303 Сбор.рец. На прод-ию для обуч. Во всех образ.учреж-Дели 2015 | B10: КАША ГРЕЧНЕВАЯ (ВЯЗКАЯ) | G10: 150 | H10: 3.600 | I10: 7.000 | K10: 29.000 | M10: 193 | O10: 27.350 | P10: 180.550 | Q10: 104.550 | R10: 3.501
A11: № 378 Сбор.рец. На прод-ию для обуч. Во всех образ.учреж-Дели 2015 | B11: ЧАЙ С САХАРОМ | G11: 200/15 | H11: 0.53 | K11: 9.470 | M11: 40 | O11: 13.600 | P11: 22.13 | Q11: 11.73 | R11: 0.100
B12: ХЛЕБ ПШЕНИНИЧНЫЙ | G12: 30 | H12: 2.280 | I12: 0.240 | K12: 14.760 | M12: 71 | O12: 6.000 | P12: 19.500 | Q12: 4.200 | R12: 0.330
B13: ХЛЕБ РЖАНОЙ (РЖАНО-ПШЕНИЧНЫЙ) | G13: 20 | H13: 1.000 | I13: 0.200 | K13: 9.000 | M13: 44 | O13: 2.760 | P13: 12.720 | Q13: 3.000 | R13: 0.372
B14: Итого: | H14: =SUM(H8:H13) -> 18.310 | I14: =SUM(I8:I13) -> 18.870 | K14: =SUM(K8:K13) -> 72.764 | M14: =SUM(M8:M13) -> 591 | O14: =SUM(O8:O13) -> 132.516 | P14: =SUM(P8:P13) -> 461.074 | Q14: =SUM(Q8:Q13) -> 162.644 | R14: =SUM(R8:R13) -> 5.763
B15: 2 день
A16: № 52 Сбор.рец. На прод-ию для обуч. Во всех образ.учреж-Дели 2015 | B16: САЛАТ ИЗ СВЕКЛЫ ОТВАРНОЙ | G16: 60 | H16: 0.855 | I16: 3.653 | K16: 11.580 | M16: 56 | O16: 121.090 | P16: 84.582 | Q16: 12.540 | R16: 0.198 | AB16: 2 ВАРИАНТ (НОЯБРЬ, ДЕКАБРЬ)
A17: № 289 Сбор.рец. На прод-ию для обуч. Во всех образ.учреж-Дели 2015 | B17: ПЛОВ ИЗ ГОВЯДИНЫ | G17: 50/150 | H17: 14.140 | I17: 11.700 | K17: 13.970 | M17: 224 | O17: 22.61 | P17: 36.880 | Q17: 205.26 | R17: 2.330
A18: № 382 Сбор.рец. На прод-ию для обуч. Во всех образ.учреж-Дели 2015 | B18: КАКАО С МОЛОКОМ | G18: 200 | H18: 3.780 | I18: 0.670 | K18: 26.000 | M18: 125 | O18: 133.330 | P18: 111.110 | Q18: 25.560 | R18: 2.000
B19: ХЛЕБ ПШЕНИНИЧНЫЙ | G19: 30 | H19: 2.280 | I19: 0.240 | K19: 14.760 | M19: 71 | O19: 6.000 | P19: 19.500 | Q19: 4.200 | R19: 0.330
B20: ХЛЕБ РЖАНОЙ (РЖАНО-ПШЕНИЧНЫЙ) | G20: 20 | H20: 1.000 | I20: 0.200 | K20: 9.000 | M20: 44 | O20: 2.760 | P20: 12.720 | Q20: 3.000 | R20: 0.372
B21: Итого: | H21: =SUM(H16:H20) -> 22.055 | I21: =SUM(I16:J20) -> 16.463 | K21: =SUM(K16:L20) -> 75.310 | M21: =SUM(M16:N20) -> 520 | O21: =SUM(O16:O20) -> 263.18 | P21: =SUM(P16:P20) -> 264.792 | Q21: =SUM(Q16:Q20) -> 45.300 | R21: =SUM(R16:R20) -> 5.230
B22: 3 день
A23: № 338 Сбор.рец. На прод-ию для обуч. Во всех образ.учреж-Дели 2015 | B23: ПЛОДЫ И ЯГОДЫ СВЕЖИЕ (ЯБЛОКИ) | G23: 100 | H23: 0.400 | I23: 0.400 | K23: 7.350 | M23: 47 | O23: 16.000 | P23: 11.000 | Q23: 9.000 | R23: 0.030
A24: № 280 Сбор.рец. На прод-ию для обуч. Во всех образ.учреж-Дели -2015 | B24: ФРИКАДЕЛЬКИ В СОУСЕ | G24: 70/50 | H24: 8.330 | I24: 7.743 | K24: 3.194 | M24: 175 | O24: 100.530 | P24: 110.071 | Q24: 0.077 | R24: 1.000
A25: № 203 Сбор.рец. На прод-ию для обуч. Во всех образ.учреж-Дели 2015 | B25: МАКАРОННЫЕ ИЗДЕЛИЯ ОТВАРНЫЕ С МАСЛОМ | G25: 150/5 | H25: 5.100 | I25: 4.468 | K25: 28.500 | M25: 187 | O25: 16.457 | P25: 57.009 | Q25: 8.479 | R25: 0.869
A26: № 377 Сбор.рец. На прод-ию для обуч. Во всех образ.учреж-Дели 2015 | B26: ЧАЙ С ЛИМОНОМ | G26: 200/15/7 | H26: 0.084 | I26: 0.012 | K26: 15.185 | M26: 62 | O26: 3.250 | P26: 1.540 | Q26: 0.840 | R26: 0.087
B27: ХЛЕБ ПШЕНИНИЧНЫЙ | G27: 30 | H27: 2.280 | I27: 0.240 | K27: 14.760 | M27: 71 | O27: 6.000 | P27: 19.500 | Q27: 4.200 | R27: 0.330
B28: ХЛЕБ РЖАНОЙ (РЖАНО-ПШЕНИЧНЫЙ) | G28: 20 | H28: 1.000 | I28: 0.200 | K28: 9.000 | M28: 44 | O28: 2.760 | P28: 12.720 | Q28: 3.000 | R28: 0.372
B29: Итого: | H29: =SUM(H23:H28) -> 17.194 | I29: =SUM(I23:J28) -> 13.063 | K29: =SUM(K23:L28) -> 77.989 | M29: =SUM(M23:N28) -> 586 | O29: =SUM(O23:O28) -> 144.997 | P29: =SUM(P23:P28) -> 211.84 | Q29: =SUM(Q23:Q28) -> 25.596 | R29: =SUM(R23:R28) -> 2.688
B30: 4 день
A31: № 338 Сбор.рец. На прод-ию для обуч. Во всех образ.учреж-Дели 2015 | B31: ПЛОДЫ И ЯГОДЫ СВЕЖИЕ (АПЕЛЬСИНЫ) | G31: 100 | H31: 0.400 | I31: 0.400 | K31: 7.350 | M31: 47 | O31: 46.000 | P31: 11.000 | Q31: 0.100 | R31: 0.000
A32: № 295 Сбор.рец. На прод-ию для обуч. Во всех образ.учреж-Дели 2015 | B32: КОТЛЕТЫ РУБЛЕННЫЕ ИЗ БРОЙЛЕР-ЦЫПЛЯТ | G32: 100 | H32: 10.240 | I32: 5.370 | K32: 19.360 | N32: 159 | O32: 89.430 | P32: 158.000 | Q32: 0.640 | R32: 0.300
A33: № 304 Сбор.рец. На прод-ию для обуч. Во всех образ.учреж-Дели 2015 | B33: РИС ОТВАРНОЙ | G33: 150 | H33: 3.834 | I33: 5.434 | K33: 29.600 | M33: 210 | O33: 11.460 | P33: 84.150 | Q33: 13.330 | R33: 0.010
A34: № 379 Сбор.рец. На прод-ию для обуч. Во всех образ.учреж-Дели 2015 | B34: КОФЕЙНЫЙ НАПИТОК С МОЛОКОМ | G34: 200 | H34: 3.600 | I34: 2.670 | K34: 29.200 | M34: 155 | O34: 158.670 | P34: 132.000 | Q34: 29.330 | R34: 2.400
B35: ХЛЕБ ПШЕНИНИЧНЫЙ | G35: 30 | H35: 2.280 | I35: 0.240 | K35: 14.760 | M35: 71 | O35: 6.000 | P35: 19.500 | Q35: 4.200 | R35: 0.330
B36: ХЛЕБ РЖАНОЙ (РЖАНО-ПШЕНИЧНЫЙ) | G36: 20 | H36: 1.000 | I36: 0.200 | K36: 9.000 | M36: 44 | O36: 2.760 | P36: 12.720 | Q36: 3.000 | R36: 0.372
B37: Итого: | H37: =SUM(H31:H36) -> 21.354 | I37: =SUM(I31:I36) -> 14.314 | K37: =SUM(K31:K36) -> 109.270 | M37: =M31+N32+M33+M34+M35+M36 -> 687 | O37: =SUM(O31:O36) -> 314.320 | P37: =SUM(P31:P36) -> 417.370 | Q37: 65.900 | R37: =SUM(R31:R36) -> 3.412
B38: 5 день
A39: № 52 Сбор.рец. На прод-ию для обуч. Во всех образ.учреж-Дели 2015 | B39: САЛАТ ИЗ СВЕКЛЫ ОТВАРНОЙ | G39: 60 | H39: 0.855 | I39: 3.653 | K39: 11.580 | M39: 56 | O39: 121.090 | P39: 84.582 | Q39: 12.540 | R39: 0.198
A40: № 268 Сбор.рец. На прод-ию для обуч. Во всех образ.учреж-Дели 2015 | B40: КОТЛЕТЫ РЫБНЫЕ | G40: 100 | H40: 6.450 | I40: 4.240 | K40: 7.49 | M40: 116 | O40: 44.020 | P40: 137.060 | Q40: 12.000 | R40: 0.000
A41: № 312 Сбор.рец. На прод-ию для обуч. Во всех образ.учреж-Дели -2015 | B41: ПЮРЕ КАРТОФЕЛЬНОЕ | G41: 150 | H41: 3.090 | I41: 8.282 | K41: 22 | M41: 172 | O41: 47.805 | P41: 98.835 | Q41: 8.000 | R41: 0.000
A42: № 378 Сбор.рец. На прод-ию для обуч. Во всех образ.учреж-Дели 2015 | B42: ЧАЙ С САХАРОМ | G42: 200/15 | H42: 0.53 | K42: 9.470 | M42: 40 | O42: 13.600 | P42: 22.13 | Q42: 11.73 | R42: 0.100
B43: ХЛЕБ ПШЕНИНИЧНЫЙ | G43: 30 | H43: 2.280 | I43: 0.240 | K43: 14.760 | M43: 71 | O43: 6.000 | P43: 19.500 | Q43: 4.200 | R43: 0.330
B44: ХЛЕБ РЖАНОЙ (РЖАНО-ПШЕНИЧНЫЙ) | G44: 20 | H44: 1.000 | I44: 0.200 | K44: 9.000 | M44: 44 | O44: 2.760 | P44: 12.720 | Q44: 3.000 | R44: 0.372
B45: Итого: | H45: =SUM(H39:H44) -> 14.205 | I45: =SUM(I39:I44) -> 16.615 | K45: =SUM(K39:K44) -> 74.367 | M45: =SUM(M39:M44) -> 499 | O45: =SUM(O39:O44) -> 235.275 | P45: =SUM(P39:P44) -> 374.827 | Q45: =SUM(Q39:Q44) -> 51.47 | R45: =SUM(R39:R44) -> 1.000
B46: 6 день
A47: № 338 Сбор.рец. На прод-ию для обуч. Во всех образ.учреж-Дели 2015 | B47: ПЛОДЫ И ЯГОДЫ СВЕЖИЕ (ЯБЛОКИ) | G47: 100 | H47: 0.400 | I47: 0.400 | K47: 7.350 | M47: 47 | O47: 16.000 | P47: 11.000 | Q47: 9.000 | R47: 0.030
A48: № 289 Сбор.рец. На прод-ию для обуч. Во всех образ.учреж-Дели 2015 | B48: РАГУ ИЗ ПТИЦЫ | G48: 50/150 | H48: 12.300 | I48: 17.660 | K48: 29.850 | M48: 313 | O48: 57.660 | P48: 201.911 | Q48: 26.394 | R48: 0.111
A49: № 382 Сбор.рец. На прод-ию для обуч. Во всех образ.учреж-Дели 2015 | B49: КАКАО С МОЛОКОМ | G49: 200 | H49: 3.780 | I49: 0.670 | K49: 26.000 | M49: 125 | O49: 133.330 | P49: 111.110 | Q49: 25.560 | R49: 2.000
B50: ХЛЕБ ПШЕНИНИЧНЫЙ | G50: 30 | H50: 2.280 | I50: 0.240 | K50: 14.760 | M50: 71 | O50: 6.000 | P50: 19.500 | Q50: 4.200 | R50: 0.330
B51: ХЛЕБ РЖАНОЙ (РЖАНО-ПШЕНИЧНЫЙ) | G51: 20 | H51: 1.000 | I51: 0.200 | K51: 9.000 | M51: 44 | O51: 2.760 | P51: 12.720 | Q51: 3.000 | R51: 0.372
B52: Итого: | H52: =SUM(H47:H51) -> 19.760 | I52: =SUM(I47:I51) -> 19.170 | K52: =SUM(K47:K51) -> 86.960 | M52: =SUM(M47:M51) -> 600 | O52: =SUM(O47:O51) -> 215.750 | P52: =SUM(P47:P51) -> 356.241 | Q52: =SUM(Q47:Q51) -> 68.154 | R52: =SUM(R47:R51) -> 2.843

Sheet Лист2

Sheet Лист3
